[Event "Menorca Open-A 2022"]
[Site "Menorca"]
[Date "2022.04.23"]
[Round "5.6"]
[White "Kosakowski, Jakub"]
[Black "Adhiban, B.."]
[Result "0-1"]
[ECO "B12"]
[WhiteElo "2452"]
[BlackElo "2633"]
[Annotator "TA"]
[PlyCount "114"]
[EventDate "2022.04.20"]
[EventType "swiss"]
[EventCountry "ESP"]
[SourceTitle "playchess.com"]
[Source "ChessBase"]
[SourceQuality "1"]
[TimeControl "5400+30"]

{[%evp 9,114,19,13,17,20,31,37,31,48,35,16,2,32,0,53,43,65,50,46,45,40,45,37,49,43,-4,67,50,75,58,66,0,0,8,11,5,9,0,0,0,0,-16,-16,-15,-23,-87,-8,-48,-53,-50,-46,-46,-35,-33,-33,-62,-48,-78,-77,-70,-70,-70,-70,-70,-67,-70,-67,-92,-84,-110,-110,-110,-110,-110,-110,-81,-81,-81,-81,-81,-81,-93,-81,-1262,-922,-1340,-415,-29968,-29970,-29968,-29971,-29970,-29971,-29971,-29972,-29972,-29971,-29973,-29975,-29975,-29976,-29976,-29976,-29975,-29975,-29975,-29963]} 1. e4 {[%emt 0:00:13]} c6 {[%emt 0:01:49]} 2. d4 {[%emt 0:01:35]} d5 {[%emt 0:00:06]} 3. e5 {[%emt 0:00:45]} c5 {[%emt 0:01:03]} 4. dxc5 {[%emt 0:00:16]} e6 {[%emt 0:00:34]} 5. Bd3 {[%emt 0:00:26]} Nc6 {[%emt 0:03:21]} 6. Nf3 {[%emt 0:03:09] B12: Caro-Kann: Advance Variation.} Bxc5 {[%emt 0:00:07]} 7. O-O {[%emt 0:00:33]} f6 {[%emt 0:01:54]} 8. exf6 {[%emt 0:21:58] White is slightly better.} Nxf6 {[%emt 0:00:14][%cal Bg8f6,Bf6h5,Bh5f4][%mdl 32]} 9. c4 {[%emt 0:00:12]} O-O {[%emt 0:03:58]} 10. Nc3 {[%emt 0:00:27]} h6 {[%emt 0:06:02]} 11. a3 {[%emt 0:01:42] [#]} a5 $146 {[%emt 0:14:14]} (11... Ng4 $11) ({Predecessor:} 11... a6 12. b4 Ba7 13. Bb2 Qc7 14. Rc1 Ng4 15. g3 Qf7 16. Be2 Rd8 17. cxd5 exd5 {½-½ (51) Poetz,F (2389)-Delchev,A (2571) Bayerisch Eisenstein 2019}) 12. Qe2 $14 {[%emt 0:09:36]} Qc7 {[%emt 0:22:33] Inhibits Bf4.} 13. h3 {[%emt 0:12:24] Prevents Ng4.} Nh5 {[%emt 0:11:12] aiming for ...Ng3.} 14. Be3 {[%emt 0:04:57]} ({But not} 14. cxd5 Ng3 $1 15. Qd1 Nxf1 16. dxc6 Ng3 $15) 14... Bxe3 {[%emt 0:01:16]} 15. Qxe3 {[%emt 0:00:25]} Nf4 {[%emt 0:00:14]} 16. Rad1 {[%emt 0:00:39]} Qf7 {[%emt 0:02:08]} 17. Ne5 {[%emt 0:02:58]} (17. h4 $14) 17... Qf6 {[%emt 0:11:58]} (17... Qh5 $1 $11 18. Nxc6 bxc6) 18. Ng4 {[%emt 0:08:33]} Qf7 {[%emt 0:02:29]} 19. Bc2 {[%emt 0:07:04]} d4 {[%emt 0:06:29]} 20. Rxd4 {[%emt 0:02:36]} (20. Qe4 $1 $14 Qf5 21. Na4) 20... Nxd4 $11 {[%emt 0:00:35]} 21. Qxd4 {[%emt 0:00:08]} e5 $1 {[%emt 0:01:58]} 22. Nxe5 {[%emt 0:00:33]} Qf6 {[%emt 0:00:05][%cal Oc8h3]} 23. Qe4 {[%emt 0:04:01][%csl Gc2][%cal Re4h7]} Bf5 $36 {[%emt 0:00:08][%mdl 2048] Against Qh7+. Black has good play.} 24. Qxf4 {[%emt 0:00:19] Threatens to win with Nd5.} Bxc2 {[%emt 0:00:04]} 25. Qd4 {[%emt 0:00:24] Strongly threatening Nd5.} Qf4 {[%emt 0:02:28]} 26. Qxf4 {[%emt 0:02:50]} Rxf4 {[%emt 0:00:04][%cal Bf8f4,Bf4d4,Bd4d1,Bd1e1,Be1b1,Bb1b4][%mdl 32]} 27. Rc1 {[%emt 0:00:12] [#]} (27. Re1 $11 {remains equal.}) 27... Re8 $1 {[%emt 0:02:50]} 28. Nd5 {[%emt 0:00:28] Pair of Knights!} (28. g3 Rd4) 28... Rd4 {[%emt 0:00:29]} 29. Rxc2 {[%emt 0:00:42] f4 is the strong threat.} Rd1+ {[%emt 0:01:06]} 30. Kh2 {[%emt 0:00:06]} Rxe5 $15 {[%emt 0:00:02][%mdl 4096] Endgame KRR-KRN} 31. b4 {[%emt 0:01:06]} Rde1 {[%emt 0:03:23]} 32. Ne3 {[%emt 0:05:33]} Rb1 $1 {[%emt 0:00:06]} 33. c5 {[%emt 0:00:42]} axb4 {[%emt 0:00:27]} 34. axb4 {[%emt 0:00:03]} Rxb4 {[%emt 0:00:04]} 35. c6 {[%emt 0:00:06]} bxc6 {[%emt 0:00:15]} 36. Rxc6 {[%emt 0:00:03]} Ra4 {[%emt 0:01:10]} 37. Rc2 {[%emt 0:00:24]} Rea5 {[%emt 0:00:19]} 38. Kg3 {[%emt 0:00:32]} Ra2 {[%emt 0:00:21]} 39. Rxa2 {[%emt 0:01:42]} Rxa2 $17 {[%emt 0:00:03] KR-KN} 40. f4 {[%emt 0:00:09]} Kf7 {[%emt 0:00:08]} 41. Kf3 {[%emt 0:00:27]} Ke6 {[%emt 0:02:36]} 42. g4 {[%emt 0:01:20]} Ra3 {[%emt 0:00:32]} 43. h4 {[%emt 0:00:59] Inhibits g5.} g6 {[%emt 0:00:27][%cal Bg7g6,Bg6f5][%mdl 32]} 44. Ke4 {[%emt 0:08:04]} Ra4+ {[%emt 0:00:03]} 45. Kf3 {[%emt 0:00:04] [#]} h5 $1 {[%emt 0:00:07]} 46. g5 $2 {[%emt 0:01:20][%mdl 8192] White does not recover from this.} (46. Nc2 $17) 46... Ra1 {[%emt 0:00:12]} 47. Kg3 {[%emt 0:00:16]} Rh1 {[%emt 0:00:43]} 48. f5+ {[%emt 0:00:58]} (48. Nc4 $19 Rg1+ 49. Kf3) 48... gxf5 {[%emt 0:00:06] Black mates.} 49. Ng2 {[%emt 0:00:01]} Ke5 {[%emt 0:01:24]} 50. g6 {[%emt 0:00:59]} Kf6 {[%emt 0:00:25]} 51. Nf4 {[%emt 0:00:11]} Rg1+ {[%emt 0:00:18]} 52. Kf3 {[%emt 0:00:26]} Rg4 {[%emt 0:01:15]} 53. g7 {[%emt 0:00:52]} Kxg7 {[%emt 0:00:21]} 54. Nxh5+ {[%emt 0:00:05]} Kf7 {[%emt 0:00:38]} 55. Ng3 {[%emt 0:00:37]} Kf6 {[%emt 0:00:10]} 56. h5 {[%emt 0:00:20]} Kg5 {[%emt 0:00:12]} 57. h6 {[%emt 0:00:09]} Rh4 {[%emt 0:00:05] Weighted Error Value: White=0.44/Black=0.15 (very precise)} 0-1

[Event "Menorca Open-A 2022"]
[Site "Menorca"]
[Date "2022.04.23"]
[Round "5.7"]
[White "Garcia Ramos, Daniel"]
[Black "Heimann, Andreas"]
[Result "1/2-1/2"]
[ECO "E04"]
[WhiteElo "2429"]
[BlackElo "2583"]
[Annotator "TA"]
[PlyCount "117"]
[EventDate "2022.04.20"]
[EventType "swiss"]
[EventCountry "ESP"]
[SourceTitle "playchess.com"]
[Source "ChessBase"]
[SourceQuality "1"]
[TimeControl "5400+30"]

{[%evp 11,116,0,1,0,0,0,8,0,0,0,0,1,1,0,0,-37,-21,-89,-54,-60,-43,-58,-6,-56,-6,-4,0,0,0,-31,-32,-51,-67,-54,-46,-42,-30,-37,-21,-23,-9,-27,-29,-29,-29,-30,-13,-13,-13,-14,-14,-14,0,-14,-15,-16,-8,-8,-8,-8,-8,-8,-8,-8,0,0,0,0,0,0,0,0,0,0,0,0,0,0,0,0,0,0,0,0,0,0,0,0,0,0,0,0,0,0,0,0,0,0,0,0,0,0,0,0,0,0,0]} 1. Nf3 {[%emt 0:00:12]} d5 {[%emt 0:00:06]} 2. d4 {[%emt 0:00:13]} Nf6 {[%emt 0:00:07]} 3. c4 {[%emt 0:00:26]} e6 {[%emt 0:00:06]} 4. g3 {[%emt 0:00:06]} dxc4 {[%emt 0:00:54]} 5. Bg2 {[%emt 0:00:30]} c6 {[%emt 0:00:07]} 6. O-O {[%emt 0:03:12]} b5 {[%emt 0:00:12]} 7. Ne5 {[%emt 0:01:12] E04: Open Catalan: 5 Nf3.} Bb7 {[%emt 0:00:23]} 8. a4 {[%emt 0:00:43] [#] aiming for axb5.} a6 {[%emt 0:00:19]} 9. axb5 {[%emt 0:12:57]} axb5 {[%emt 0:00:17]} 10. Rxa8 {[%emt 0:00:06]} Bxa8 {[%emt 0:00:05]} 11. b3 {[%emt 0:15:19]} cxb3 {[%emt 0:02:54]} 12. Qxb3 {[%emt 0:00:10]} Qxd4 {[%emt 0:06:19] [#]} 13. Bf4 $146 {[%emt 0:12:49]} (13. Bb2 $5 {[%cal Rb2d4]} Qb6 14. Nd2 $11) ({Predecessor:} 13. Bb2 Qb6 14. Na3 Bb7 15. Nec4 Qa6 16. Ra1 bxc4 17. Nxc4 Qb5 18. Qxb5 cxb5 19. Bxb7 bxc4 20. Ra8 Nfd7 {0-1 (20) Rusev,R (2364)-Sethuraman,S (2649) Novi Sad 2016}) 13... Be7 {[%emt 0:09:48] Threatens to win with ...0-0.} 14. Nc3 {[%emt 0:49:35]} (14. Qa2 $11 Qa4 15. Qb2) 14... O-O {[%emt 0:03:35]} 15. Nxb5 {[%emt 0:00:00]} cxb5 {[%emt 0:00:27]} 16. Bxa8 {[%emt 0:00:00]} g5 {[%emt 0:02:11]} ({Black should play} 16... Nh5 $15 17. Rd1 Qc5) 17. Qe3 $1 $11 {[%emt 0:00:00]} Qxe3 {[%emt 0:15:03]} (17... Qa4 $15 18. Bxg5 Qxa8) 18. Bxe3 {[%emt 0:00:00]} Nd5 {[%emt 0:00:10]} 19. Bxd5 {[%emt 0:00:00]} exd5 {[%emt 0:00:09]} 20. Rd1 {[%emt 0:00:00]} f6 {[%emt 0:04:38]} 21. Rxd5 {[%emt 0:00:00]} fxe5 {[%emt 0:03:29]} 22. Rxe5 {[%emt 0:00:00]} Nc6 {[%emt 0:01:32]} 23. Rxb5 {[%emt 0:00:00]} Bf6 {[%emt 0:03:56]} 24. Kg2 {[%emt 0:00:00]} h6 {[%emt 0:01:29]} 25. h4 {[%emt 0:00:00]} Nd4 {[%emt 0:00:13]} 26. Rd5 {[%emt 0:00:00]} Ne6 {[%emt 0:05:43]} 27. hxg5 {[%emt 0:00:00]} hxg5 {[%emt 0:00:04]} 28. Kh3 {[%emt 0:00:41]} Re8 {[%emt 0:07:36]} 29. Kg4 {[%emt 0:00:18] The position is equal.} Kf7 {[%emt 0:00:04]} 30. Rd7+ {[%emt 0:02:20]} Kg6 {[%emt 0:00:15]} 31. Rd6 {[%emt 0:00:36]} Kf7 {[%emt 0:02:53]} 32. Rd7+ {[%emt 0:00:38]} Be7 {[%emt 0:00:06]} 33. f4 {[%emt 0:00:49][%cal Bf2f4,Bf4g5,Bg5g6][%mdl 32]} Ra8 {[%emt 0:06:34]} 34. fxg5 {[%emt 0:01:03]} Ra2 {[%emt 0:05:10]} 35. g6+ {[%emt 0:01:05]} Kf6 {[%emt 0:00:18]} 36. g7 {[%emt 0:01:09]} Ra8 {[%emt 0:01:36]} 37. Bc1 {[%emt 0:00:59]} Kf7 {[%emt 0:05:20]} ({Don't do} 37... Ra4+ 38. e4 Nxg7 39. Bg5+ Ke5 40. Rxe7+ Ne6 41. Kh4 $14) 38. Ba3 {[%emt 0:01:24][%mdl 64] [#] Pin} Ra4+ {[%emt 0:01:10]} 39. e4 {[%emt 0:00:23][%cal Be2e4,Be4e5,Be5e6][%mdl 32]} Nxg7 {[%emt 0:02:09]} 40. Rxe7+ {[%emt 0:00:29][%mdl 4096] Endgame KRB-KRN} Kf6 {[%emt 0:00:04]} 41. Bd6 {[%emt 0:00:50] And now Kf3 would win.} Nf5 $1 {[%emt 0:00:15]} 42. Rf7+ {[%emt 0:00:23]} Kxf7 {[%emt 0:00:06]} 43. Kxf5 {[%emt 0:00:01] KR-KB} Ra5+ {[%emt 0:04:06]} 44. e5 {[%emt 0:00:38]} Ra2 {[%emt 0:00:03]} 45. e6+ {[%emt 0:00:15]} Ke8 {[%emt 0:00:02]} 46. g4 {[%emt 0:00:11][%cal Bg3g4,Bg4g5,Bg5g6,Bg6g7][%mdl 32]} Rf2+ {[%emt 0:00:05]} 47. Kg6 {[%emt 0:01:26]} Re2 {[%emt 0:00:09]} 48. Kf5 {[%emt 0:00:02]} Rf2+ {[%emt 0:00:06]} 49. Bf4 {[%emt 0:01:10]} Ke7 {[%emt 0:00:06]} 50. g5 {[%emt 0:00:06]} Rxf4+ {[%emt 0:00:07]} 51. Kxf4 {[%emt 0:00:05] Threatening mate with Kf5.} Kxe6 {[%emt 0:00:03] KP-K} 52. Kg4 $1 {[%emt 0:00:09] Intending Kh5 and mate.} Kf7 {[%emt 0:00:04]} 53. Kf5 {[%emt 0:00:03]} Kg7 {[%emt 0:00:02]} 54. g6 {[%emt 0:00:03]} Kg8 {[%emt 0:00:02]} 55. Kg5 {[%emt 0:00:02]} Kg7 {[%emt 0:00:03]} 56. Kf5 {[%emt 0:00:06]} Kg8 {[%emt 0:00:03]} 57. Kf6 {[%emt 0:00:02] White wants to mate with g7.} Kf8 {[%emt 0:00:03]} 58. g7+ {[%emt 0:00:02]} Kg8 {[%emt 0:00:02]} 59. Kg6 {[%emt 0:00:01] Weighted Error Value: White=0.04 (flawless) /Black=0.06 (flawless)} 1/2-1/2

[Event "Menorca Open-A 2022"]
[Site "Menorca"]
[Date "2022.04.23"]
[Round "5.8"]
[White "Sosa, Tomas"]
[Black "Romanishin, Oleg M"]
[Result "1/2-1/2"]
[ECO "C91"]
[WhiteElo "2554"]
[BlackElo "2415"]
[Annotator "TA"]
[PlyCount "64"]
[EventDate "2022.04.20"]
[EventType "swiss"]
[EventCountry "ESP"]
[SourceTitle "playchess.com"]
[Source "ChessBase"]
[SourceQuality "1"]
[TimeControl "5400+30"]

{[%evp 20,64,20,16,26,-5,23,24,22,22,22,0,0,11,7,-9,38,33,37,45,25,30,33,33,31,28,33,26,22,34,27,7,15,0,0,0,0,0,0,0,3,0,0,0,0,0,0]} 1. e4 {[%emt 0:00:04]} e5 {[%emt 0:00:08]} 2. Nf3 {[%emt 0:00:06]} Nc6 {[%emt 0:00:02]} 3. Bb5 {[%emt 0:00:18]} a6 {[%emt 0:00:05]} 4. Ba4 {[%emt 0:00:05]} Nf6 {[%emt 0:00:03]} 5. O-O {[%emt 0:00:21]} Be7 {[%emt 0:00:04]} 6. Re1 {[%emt 0:00:05]} b5 {[%emt 0:01:40]} 7. Bb3 {[%emt 0:00:06]} d6 {[%emt 0:00:02]} 8. c3 {[%emt 0:00:22]} O-O {[%emt 0:00:06]} 9. d4 {[%emt 0:00:22]} Bg4 {[%emt 0:00:05]} 10. Be3 {[%emt 0:00:51]} Bh5 {[%emt 0:00:55]} 11. Nbd2 {[%emt 0:01:11]} Na5 {[%emt 0:02:32] C91: Closed Ruy Lopez: 7...d6 8 c3 0-0 9 d4.} 12. Bc2 {[%emt 0:00:19]} Ng4 {[%emt 0:08:39]} 13. Qe2 {[%emt 0:01:22]} Bf6 {[%emt 0:11:36] [#] White has an edge.} 14. d5 $146 {[%emt 0:07:52]} ({Predecessor:} 14. b4 Nc6 15. d5 Nxe3 16. Qxe3 Ne7 17. a4 Qc8 18. h3 Bg6 19. Bb3 h6 20. c4 bxc4 21. Bxc4 {½-½ (49) Schulz,G (2411)-Trofimov,V (2426) GER email 2018}) 14... c5 {[%emt 0:04:39]} 15. dxc6 {[%emt 0:11:31]} Nxe3 {[%emt 0:03:27]} 16. Qxe3 {[%emt 0:00:22]} Qc7 {[%emt 0:02:30]} 17. Bd1 {[%emt 0:23:27][%cal Of3e5]} Bg4 {[%emt 0:02:43] [#]} (17... Bg6 $11 {deserves consideration.}) 18. Nxe5 $1 $14 {[%emt 0:09:34]} Bxd1 {[%emt 0:00:13]} 19. Nd7 {[%emt 0:00:05]} Bh5 {[%emt 0:01:55]} 20. Nxf6+ {[%emt 0:01:10]} ({Much worse is} 20. Nxf8 Rxf8 21. f3 (21. Qh3 Bg6 $17) 21... Nxc6 $17) 20... gxf6 {[%emt 0:00:09]} 21. Qh6 {[%emt 0:00:13][%csl LRf6,LRh5]} Bg6 {[%emt 0:00:21]} 22. h4 $1 {[%emt 0:00:17]} Nxc6 {[%emt 0:05:53][%cal Ba5c6,Bc6e5,Be5d3][%mdl 32]} 23. h5 {[%emt 0:01:02]} Ne5 {[%emt 0:00:08]} 24. hxg6 {[%emt 0:00:12]} (24. Nf1 {looks sharper.} Ng4 25. Qf4 Bxh5 26. Ng3) 24... fxg6 {[%emt 0:00:08]} 25. Nb3 {[%emt 0:02:37]} Rae8 {[%emt 0:04:25] The position is equal.} 26. Nd4 {[%emt 0:01:03]} Nd3 {[%emt 0:10:04][%csl LRb2,LRe1]} 27. Re2 {[%emt 0:02:20]} d5 {[%emt 0:02:16]} 28. exd5 {[%emt 0:02:52]} Rxe2 {[%emt 0:00:14]} 29. Nxe2 {[%emt 0:00:04] With the idea Qd2.} Qc5 {[%emt 0:00:44]} 30. Rf1 {[%emt 0:15:37] Threatens to win with Qd2.} Qxd5 {[%emt 0:04:04]} 31. Qd2 {[%emt 0:00:11] [#] Black must now prevent Rd1.} Rd8 {[%emt 0:02:47]} 32. Nd4 {[%emt 0:00:09]} Ne5 {[%emt 0:01:08] Weighted Error Value: White=0.05 (flawless) /Black=0.05 (flawless)} 1/2-1/2

[Event "Menorca Open-A 2022"]
[Site "Menorca"]
[Date "2022.04.23"]
[Round "5.9"]
[White "Rahal, Michael A"]
[Black "Iermito, Sebastian"]
[Result "1/2-1/2"]
[ECO "B80"]
[WhiteElo "2329"]
[BlackElo "2525"]
[Annotator "TA"]
[PlyCount "48"]
[EventDate "2022.04.20"]
[EventType "swiss"]
[EventCountry "ESP"]
[SourceTitle "playchess.com"]
[Source "ChessBase"]
[SourceQuality "1"]
[TimeControl "5400+30"]

{[%evp 18,48,49,45,41,29,35,18,23,14,22,22,11,14,11,14,22,20,16,0,0,0,0,0,0,0,0,0,0,0,0,0,483]} 1. e4 {[%emt 0:00:41]} c5 {[%emt 0:00:04]} 2. Nf3 {[%emt 0:00:52]} e6 {[%emt 0:00:05]} 3. d4 {[%emt 0:00:07]} cxd4 {[%emt 0:00:03]} 4. Nxd4 {[%emt 0:00:10]} Nc6 {[%emt 0:00:03]} 5. Nc3 {[%emt 0:00:41]} Qc7 {[%emt 0:00:04]} 6. g3 {[%emt 0:00:38]} a6 {[%emt 0:00:14]} 7. Bg2 {[%emt 0:00:07]} d6 {[%emt 0:00:05]} 8. Nxc6 {[%emt 0:02:04]} bxc6 {[%emt 0:00:06]} 9. O-O {[%emt 0:00:09]} Nf6 {[%emt 0:00:41]} 10. Na4 {[%emt 0:00:48]} Bb7 {[%emt 0:04:28][%cal Bc8b7,Bb7c6,Bc6a4][%mdl 32] B80: Sicilian Scheveningen: 6 g3 and 6 Be3, including English Attack.} 11. c4 {[%emt 0:05:10][%cal Oc4c5]} c5 {[%emt 0:01:05]} 12. Re1 {[%emt 0:04:12]} Be7 {[%emt 0:02:40]} 13. b3 {[%emt 0:04:00]} O-O {[%emt 0:01:18] The position is equal.} 14. Bb2 {[%emt 0:00:15]} Nd7 {[%emt 0:02:00] Inhibits e5.} 15. f4 {[%emt 0:03:43]} Bc6 {[%emt 0:02:20] [#]} 16. Qg4 $146 {[%emt 0:06:57][%csl Gb2][%cal Rg4g7] [#]} ({Predecessor:} 16. Nc3 Bf6 17. h3 Rab8 18. Qc2 Bd4+ 19. Kh2 Qb7 20. Rad1 Rfe8 21. Rd2 a5 22. Nb5 Bxb5 23. cxb5 {0-1 (67) Rombaldoni,A (2488)-Dubov,D (2632) Jerusalem 2015}) 16... Nf6 {[%emt 0:05:30]} 17. Qe2 {[%emt 0:05:16]} Bxa4 {[%emt 0:02:33]} 18. e5 {[%emt 0:02:38]} Bc6 {[%emt 0:22:36]} 19. exf6 {[%emt 0:00:41]} Bxf6 {[%emt 0:01:21]} 20. Bxf6 {[%emt 0:00:29]} gxf6 {[%emt 0:00:05]} 21. Qg4+ {[%emt 0:01:38]} Kh8 {[%emt 0:00:03]} 22. Qh4 {[%emt 0:00:49] And now Bxc6 would win.} Kg7 {[%emt 0:00:29]} 23. Qg4+ {[%emt 0:00:25]} Kh8 {[%emt 0:00:04]} 24. Qh4 {[%emt 1:00:00]} Qd8 $2 {[%emt 0:54:33][%mdl 40960] Weighted Error Value: White=0.04 (flawless) /Black=0.02 (flawless) . An unexpected result.} 1/2-1/2

[Event "Menorca Open-A 2022"]
[Site "Menorca"]
[Date "2022.04.23"]
[Round "5.10"]
[White "Nasuta, Grzegorz"]
[Black "Baskin, Robert"]
[Result "0-1"]
[ECO "C14"]
[WhiteElo "2518"]
[BlackElo "2393"]
[Annotator "TA"]
[PlyCount "110"]
[EventDate "2022.04.20"]
[EventType "swiss"]
[EventCountry "ESP"]
[SourceTitle "playchess.com"]
[Source "ChessBase"]
[SourceQuality "1"]
[TimeControl "5400+30"]

{[%evp 14,110,20,17,20,25,10,28,22,30,22,31,25,29,35,0,0,-29,-57,-52,-25,-24,9,-43,8,-64,-62,-68,-71,-46,-52,-266,-71,-74,-73,-70,-77,-54,-38,-80,-74,-84,-72,-77,-82,-76,-58,-125,-126,-135,-126,-152,-115,-146,-146,-146,-92,-260,-254,-254,-254,-254,-254,-254,-254,-256,-247,-341,-336,-375,-380,-357,-320,-334,-359,-400,-400,-416,-376,-375,-374,-463,-467,-448,-443,-430,-229,-781,-668,-1425,-913,-864,-864,-1676,-1675,-29974,-29975,-5634,-627]} 1. e4 {[%emt 0:00:03]} e6 {[%emt 0:07:11]} 2. d4 {[%emt 0:00:11]} d5 {[%emt 0:00:05]} 3. Nc3 {[%emt 0:00:06]} Nf6 {[%emt 0:00:05]} 4. Bg5 {[%emt 0:00:07]} Be7 {[%emt 0:00:05]} 5. e5 {[%emt 0:00:07]} Nfd7 {[%emt 0:00:03]} 6. h4 {[%emt 0:00:10]} Bxg5 {[%emt 0:00:05]} 7. hxg5 {[%emt 0:00:06]} Qxg5 {[%emt 0:00:04]} 8. Nh3 {[%emt 0:00:07]} Qh4 {[%emt 0:00:05] C14: French: Classical System: 4 Bg5 Be7 main line.} 9. g3 {[%emt 0:06:13][%mdl 1024] White has compensation.} Qe7 {[%emt 0:00:12]} 10. Qg4 {[%emt 0:00:13]} g6 {[%emt 0:00:18] White has an edge.} 11. Ng5 {[%emt 0:05:51]} h6 {[%emt 0:00:11] [#]} 12. O-O-O $1 {[%emt 0:02:16][%cal Of1d3]} Nc6 {[%emt 0:05:24] [#]} 13. Nb5 $146 {[%emt 0:08:26]} ({Predecessor:} 13. Kb1 Nf8 14. f4 Bd7 15. Qe2 O-O-O 16. Nf3 Kb8 17. Qe3 Be8 18. g4 a6 19. Re1 {½-½ (46) Pommrich,R (2220)-Haemmerle,D (2147) ICCF email 2018}) 13... Nb6 {[%emt 0:07:45] [#]} (13... Nf8 14. Nc3) 14. Bd3 $1 {[%emt 0:17:51][%cal Og5f7]} h5 {[%emt 0:07:47]} 15. Qf4 {[%emt 0:01:59]} (15. Nxf7 $5 {[%cal Rb5c7]} hxg4 16. Nxh8 $11) 15... a6 {[%emt 0:00:28]} 16. Nc3 {[%emt 0:17:08]} Bd7 {[%emt 0:01:49][%cal Oc6d4]} 17. g4 {[%emt 0:06:49]} h4 {[%emt 0:04:10][%cal Oc6d4]} 18. Rh3 {[%emt 0:02:25] [#]} (18. Nf3 $11) 18... O-O-O {[%emt 0:03:56]} (18... Nxd4 $1 $15 19. Rdh1 O-O-O $1) 19. Rdh1 {[%emt 0:03:06] [#]} ({Don't blunder} 19. Nxf7 $2 Rdf8 20. Bxg6 Be8 $19) (19. Nf3 $11) 19... Nxd4 $1 $15 {[%emt 0:13:26]} 20. Rxh4 {[%emt 0:08:28]} Rxh4 {[%emt 0:04:54]} 21. Rxh4 {[%emt 0:00:01]} Qb4 {[%emt 0:06:24]} 22. Qf6 $2 {[%emt 0:02:19]} (22. Qd2 $15) 22... Be8 $2 {[%emt 0:08:58]} (22... Na4 $19 {has better winning chances.} 23. Kd2 Nxb2) 23. a3 $17 {[%emt 0:03:25]} Qc5 {[%emt 0:00:59]} 24. Nxf7 {[%emt 0:02:52]} Bxf7 {[%emt 0:00:11]} 25. Qxf7 {[%emt 0:00:02]} g5 $36 {[%emt 0:02:24][%mdl 2048] White is under pressure.} 26. Rh7 {[%emt 0:01:10] [#]} Nd7 $1 {[%emt 0:01:46]} 27. f4 {[%emt 0:06:07]} gxf4 {[%emt 0:01:53]} 28. Qxf4 {[%emt 0:00:06]} Nc6 {[%emt 0:02:04]} 29. Kb1 {[%emt 0:03:14]} Ncxe5 {[%emt 0:07:49] ...Qg1+ is the strong threat. Pair of Knights!} 30. Be2 {[%emt 0:00:09]} (30. Ne2 $15) 30... Kb8 {[%emt 0:00:39]} 31. Rh6 {[%emt 0:02:18]} Rf8 {[%emt 0:02:13]} 32. Qg3 {[%emt 0:00:28]} Qe7 {[%emt 0:00:15] &Nero is more active.} 33. g5 {[%emt 0:00:37]} Rg8 {[%emt 0:00:33][%cal Bf8g8,Bg8g5,Bg5g2,Bg2d2,Bd2d3,Bd3h3,Bh3h2][%mdl 32]} 34. Qe3 {[%emt 0:02:21]} c6 {[%emt 0:04:51]} ({Better is} 34... Qxg5 35. Qxg5 Rxg5 36. Rxe6 Rg1+ 37. Ka2 c6) 35. Ka2 $2 {[%emt 0:00:38]} (35. Rh5 $17) 35... Qxg5 $19 {[%emt 0:02:39]} ({And not} 35... Rxg5 36. Rh8+ Kc7 37. Qa7 $17) 36. Qxg5 {[%emt 0:00:06]} Rxg5 {[%emt 0:00:02]} 37. Rxe6 {[%emt 0:00:05]} Rg2 {[%emt 0:00:03] aiming for ...d4.} 38. Bd3 {[%emt 0:01:02]} Nxd3 {[%emt 0:00:29]} 39. cxd3 {[%emt 0:00:01][%mdl 4096] Endgame KRN-KRN} Rd2 {[%emt 0:00:40]} 40. Na4 {[%emt 0:01:13]} Kc7 {[%emt 0:02:35]} ({Not} 40... Rxd3 41. Re8+ Kc7 42. Re7 $17) 41. Kb1 {[%emt 0:00:01]} b5 {[%emt 0:00:41]} 42. Nc3 {[%emt 0:00:12]} Rxd3 {[%emt 0:00:08]} 43. Kc2 {[%emt 0:00:01]} Rh3 {[%emt 0:00:20]} 44. Ne2 {[%emt 0:00:09]} Nc5 {[%emt 0:01:08]} 45. Rg6 {[%emt 0:00:01]} Rh2 {[%emt 0:00:23]} 46. Kd1 {[%emt 0:00:01]} Nd3 {[%emt 0:02:24]} 47. b4 {[%emt 0:03:39]} Nb2+ {[%emt 0:00:55]} 48. Ke1 {[%emt 0:00:00]} Rh4 {[%emt 0:00:24] Prevents Nd4.} 49. Kd2 {[%emt 0:00:10]} d4 {[%emt 0:01:33]} (49... Nc4+ $142 50. Kc3 Rh3+ 51. Rg3 Rxg3+ 52. Nxg3 Nxa3) 50. Ng3 $2 {[%emt 0:00:34]} (50. Nxd4 Rxd4+ 51. Kc3) 50... Nc4+ {[%emt 0:00:08]} 51. Ke1 {[%emt 0:00:45]} d3 {[%emt 0:00:24][%cal Bd4d3,Bd3d2][%mdl 32]} 52. Rg7+ {[%emt 0:00:01]} Kb6 {[%emt 0:00:13] ( -> ...d2+)} 53. Rd7 {[%emt 0:00:44]} d2+ {[%emt 0:00:07]} 54. Ke2 {[%emt 0:00:06]} Rh2+ {[%emt 0:00:04]} 55. Kf1 {[%emt 0:00:56]} Ne3+ {[%emt 0:00:25] Weighted Error Value: White=0.67/Black=0.18 (very precise)} 0-1